Workbook

Sheet Problem a,b,c
A1: Parameter | B1: Value | C1: Formula
A2: MTTF | B2: 43800
A3: c_PM | B3: 15000
A4: c_CM | B4: 30000
A5: MDT | B5: 12
A6: kw | B6: 6000
A7: price | B7: 0.5
A8: alpha | B8: 4
A9: c_ES | B9: =price*kw*MDT -> 36000 | C9: =_xlfn.FORMULATEXT(B9) -> =price*kw*MDT
A10: c_U | B10: =c_CM+c_EP -> 66000 | C10: =c_CM+c_EP
A12: Solution for t
A13: Hours: | B13: =(MTTF/_xlfn.GAMMA(1+1/alpha))*((c_PM/((alpha-1)*c_U))^(1/alpha)) -> 25351.84343 | C13: =(MTTF/GAMMA(1+1/alpha))*((c_PM/((alpha-1)*c_U))^(1/alpha))
A14: Years: | B14: =tau_hours/8760 -> 2.894046053 | C14: =tau_hours/8760
A15: Months: | B15: =tauYears*12 -> 34.72855264 | C15: =tauYears*12
B18: PM | C18: CM | D18: EP | E18: Total
A19: 20000 | B19: =c_PM/A19 -> 0.75 | C19: =0.67*A19^3/MTTF^4*c_CM -> 0.04369076031 | D19: =0.67*A19^3/MTTF^4*c_EP -> 0.05242891237 | E19: =B19+C19+D19 -> 0.8461196727
A20: =A19+1000 -> 21000 | B20: 0.7142857143 | C20: 0.0505775164 | D20: 0.06069301968 | E20: =B20+C20+D20 -> 0.8255562504
A21: =A20+1000 -> 22000 | B21: 0.6818181818 | C21: 0.05815240197 | D21: 0.06978288237 | E21: 0.8097534662
A22: 23000 | B22: 0.652173913 | C22: 0.06644818509 | D22: 0.0797378221 | E22: 0.7983599202
A23: 24000 | B23: 0.625 | C23: 0.07549763381 | D23: 0.09059716058 | E23: 0.7910947944
A24: 25000 | B24: 0.6 | C24: 0.08533351623 | D24: 0.1024002195 | E24: 0.7877337357
A25: 26000 | B25: 0.5769230769 | C25: 0.0959886004 | D25: 0.1151863205 | E25: 0.7880979978
A26: 27000 | B26: 0.5555555556 | C26: 0.1074956544 | D26: 0.1289947853 | E26: 0.7920459952
A27: 28000 | B27: 0.5357142857 | C27: 0.1198874463 | D27: 0.1438649355 | E27: 0.7994666676
A28: 29000 | B28: =c_PM/A28 -> 0.5172413793 | C28: =0.67*A28^3/MTTF^4*c_CM -> 0.1331967441 | D28: =0.67*A28^3/MTTF^4*c_EP -> 0.159836093 | E28: =B28+C28+D28 -> 0.8102742164
A29: 30000 | B29: 0.5 | C29: 0.147456316 | D29: 0.1769475793 | E29: 0.8244038953
